bitfinex/quotes_SOLUSD_20220128
["timestamp","ask_amount","ask_price","bid_price","bid_amount"]
[1643396928003,23.8943,91.647,91.582,0.25]
[1643396928604,23.8943,91.647,91.581,6.0]
[1643396928803,23.8943,91.647,91.582,0.25]
[1643396929807,23.8943,91.647,91.571,108.3]
[1643396930204,23.8943,91.647,91.581,6.0]
[1643396930405,23.8943,91.647,91.582,0.25]
[1643396932806,23.8943,91.647,91.581,0.25]
[1643396934008,23.8943,91.647,91.576,6.0]
[1643396934407,0.25,91.646,91.577,0.25]
[1643396934808,24.5076,91.659,91.577,0.25]
[1643396935012,24.5076,91.659,91.578,2.95669142]
[1643396935209,24.5076,91.659,91.58,16.379]
[1643396935409,24.5076,91.659,91.588,6.0]
[1643396935609,24.5076,91.659,91.591,6.0]
[1643396935910,54.596,91.7,91.591,6.0]
[1643396935911,1.5186228,91.696,91.592,46.48582021]
[1643396936113,1.5186228,91.707,91.62,16.371]
[1643396936311,1.5186228,91.709,91.621,0.25]
[1643396936509,1.5186228,91.713,91.63,6.0]
[1643396936708,23.324,91.715,91.63,6.0]
[1643396936909,12.7165129,91.712,91.631,54.14748692]
[1643396937208,16.374,91.71,91.631,54.14748692]
[1643396937612,23.9094,91.709,91.631,54.14748692]
[1643396939108,2.95669142,91.708,91.631,6.0]
[1643396939308,16.376,91.7,91.631,6.0]
[1643396939511,16.376,91.7,91.604,6.0]
[1643396939714,25.1974228,91.699,91.603,6.0]
[1643396939912,25.1974228,91.699,91.581,108.3]
[1643396939913,25.1974228,91.699,91.605,0.25]
[1643396940315,1.5186228,91.698,91.605,0.25]
[1643396940615,25.1974228,91.699,91.591,54.29811205]
[1643396940812,1.5186228,91.697,91.591,54.29811205]
[1643396941014,16.377,91.69,91.591,54.29811205]
[1643396941418,16.377,91.69,91.6,6.0]
[1643396941615,16.377,91.69,91.601,6.0]
[1643396941616,0.25,91.689,91.601,6.0]
[1643396942314,16.38,91.68,91.601,6.0]
[1643396942514,4.8017188,91.678,91.601,6.0]
[1643396942923,4.8017188,91.678,91.602,0.25]
[1643396944621,4.8017188,91.678,91.61,6.0]
[1643396945018,4.8017188,91.678,91.601,6.25]
[1643396945217,4.8017188,91.678,91.601,6.0]
[1643396945428,4.8017188,91.678,91.602,0.25]
[1643396946024,4.8017188,91.678,91.602,6.25]
[1643396946625,4.8017188,91.678,91.607,6.0]
[1643396947431,4.8017188,91.678,91.608,0.25]
[1643396948834,4.8017188,91.678,91.603,0.25]
[1643396949134,4.8017188,91.678,91.61,6.0]
[1643396949334,4.8017188,91.678,91.611,0.25]
[1643396949934,4.8017188,91.678,91.61,6.0]
[1643396950945,4.8017188,91.678,91.611,0.25]
[1643396951347,4.8017188,91.678,91.61,6.0]
[1643396951552,6.0,91.668,91.567,1.50862427]
[1643396951751,23.1516,91.667,91.567,1.50862427]
[1643396951948,23.4016,91.667,91.561,1.50862427]
[1643396952152,6.0,91.657,91.564,6.0]
[1643396952348,23.5178,91.656,91.561,6.0]
[1643396952549,23.5178,91.656,91.562,47.7983364]
[1643396952753,23.5178,91.656,91.563,0.25]
[1643396952951,16.384,91.65,91.563,0.25]
[1643396953157,12.7165129,91.649,91.563,0.25]
[1643396953353,36.1353129,91.649,91.563,0.25]
[1643396955059,16.387,91.64,91.563,0.25]
[1643396955253,0.25,91.639,91.552,0.25]
[1643396955454,24.287,91.639,91.552,0.25]
[1643396955656,24.287,91.639,91.55,6.0]
[1643396955955,24.287,91.639,91.551,0.25]
[1643396956167,24.287,91.639,91.551,40.54989367]
[1643396956558,24.287,91.639,91.561,6.0]
[1643396956758,24.287,91.639,91.562,0.25]
[1643396957559,24.287,91.639,91.57,6.0]
[1643396957754,24.287,91.639,91.571,0.25]
[1643396959361,24.287,91.639,91.571,6.25]
[1643396961366,24.287,91.639,91.571,0.25]
[1643396961766,24.287,91.639,91.562,0.25]
[1643396963067,24.287,91.639,91.552,0.25]
[1643396966171,24.037,91.639,91.552,0.25]
[1643396966370,24.037,91.639,91.561,6.0]
[1643396966573,24.037,91.639,91.55,16.384]
[1643396966772,24.037,91.639,91.561,6.0]
[1643396967373,0.25,91.638,91.561,6.0]
[1643396967775,0.25,91.638,91.562,0.25]
[1643396968375,0.25,91.638,91.552,0.25]
[1643396968775,1.5186228,91.651,91.562,108.3]
[1643396968975,1.5186228,91.663,91.562,108.3]
[1643396969175,1.5186228,91.676,91.573,108.60332741]
[1643396969376,1.5186228,91.676,91.574,0.25]
[1643396969575,1.5186228,91.677,91.583,6.0]
[1643396969781,15.7847969,91.675,91.584,47.79821149]
[1643396969974,15.7847969,91.675,91.585,108.3]
[1643396970176,16.381,91.67,91.585,114.3]
[1643396970375,16.381,91.67,91.595,108.3]
[1643396970575,24.2984,91.674,91.605,6.0]
[1643396970877,24.2984,91.674,91.606,0.25]
[1643396971877,24.2984,91.674,91.607,2.95669142]
[1643396972079,24.2984,91.674,91.618,37.50691028]
[1643396972381,24.2984,91.674,91.619,3.20669142]
[1643396972579,24.2984,91.674,91.629,6.0]
[1643396972980,0.25,91.673,91.629,6.0]
[1643396973180,0.25,91.673,91.594,2.95669142]
[1643396973378,0.25,91.673,91.595,0.25]
[1643396973581,0.25,91.673,91.596,6.0]
[1643396973779,0.25,91.673,91.597,0.25]
[1643396974189,0.25,91.673,91.597,48.35606234]
[1643396974379,26.4592228,91.674,91.607,6.0]
[1643396974581,24.9406,91.674,91.607,6.0]
[1643396974781,24.9406,91.674,91.608,0.25]
[1643396975680,24.9406,91.674,91.608,6.25]
[1643396977714,1.5186228,91.681,91.609,2.95669142]
[1643396977914,1.5186228,91.689,91.612,0.3132911]
[1643396978112,79.9741,91.759,91.62,6.0]
[1643396978113,1.5186228,91.704,91.62,6.0]
[1643396978311,1.5186228,91.71,91.63,13.04]
[1643396978613,1.5186228,91.713,91.64,6.0]
[1643396978813,1.5186228,91.713,91.661,35.50128008]
[1643396979006,1.5186228,91.719,91.671,6.0]
[1643396979207,13.43905751,91.732,91.671,6.0]
[1643396979208,1.5186228,91.718,91.671,6.0]
[1643396979409,1.5186228,91.723,91.671,6.0]
[1643396979707,1.5186228,91.727,91.671,6.0]
[1643396979910,1.5186228,91.727,91.656,6.0]
[1643396980212,24.5603,91.731,91.657,42.56154248]
[1643396980213,1.5186228,91.726,91.657,42.56154248]
[1643396980408,1.5186228,91.725,91.657,42.81154248]
[1643396980609,1.5186228,91.725,91.667,6.0]
[1643396980807,0.25,91.724,91.667,6.0]
[1643396981506,1.5186228,91.725,91.667,6.0]
[1643396981907,1.5186228,91.726,91.667,6.0]
[1643396982108,16.371,91.73,91.667,6.0]
[1643396982309,26.0789228,91.731,91.667,6.0]
[1643396982810,24.5603,91.731,91.667,6.0]
[1643396983607,16.37,91.73,91.667,6.0]
[1643396985216,24.5603,91.731,91.667,6.0]
[1643396985422,24.5603,91.731,91.668,0.25]
[1643396986021,24.5603,91.731,91.668,6.25]
[1643396986418,16.62,91.73,91.668,6.0]
[1643396986823,16.62,91.73,91.667,6.0]
[1643396987024,13.29,91.73,91.667,6.0]
[1643396987421,0.25,91.73,91.624,6.0]
[1643396987621,1.5186228,91.729,91.624,6.0]
[1643396987821,0.25,91.73,91.624,6.0]
[1643396987822,6.0,91.721,91.625,0.25]
[1643396988026,6.0,91.721,91.63,16.37]
[1643396988027,16.372,91.72,91.63,16.37]
[1643396988223,63.6436,91.72,91.626,47.49591465]
[1643396988423,63.6436,91.72,91.635,6.0]
[1643396988624,63.6436,91.72,91.636,6.0]
[1643396988826,63.6436,91.72,91.637,0.25]
[1643396989224,0.25,91.719,91.637,0.25]
[1643396989425,16.374,91.71,91.637,0.25]
[1643396989731,24.621,91.709,91.622,6.0]
[1643396989925,24.871,91.709,91.622,6.0]
[1643396990125,13.04,91.7,91.613,6.0]
[1643396990325,16.38,91.68,91.613,6.0]
[1643396990529,22.5913,91.679,91.596,6.0]
[1643396990726,6.0,91.669,91.586,108.3]
[1643396990927,22.5913,91.668,91.586,108.3]
[1643396991127,6.0,91.658,91.586,108.3]
[1643396991327,36.28035751,91.657,91.587,35.65593686]
[1643396992328,36.28035751,91.657,91.588,0.25]
[1643396993729,36.03035751,91.657,91.588,0.25]
[1643396995330,0.25,91.656,91.552,18.73763498]
[1643396995536,6.0,91.647,91.566,6.0]
[1643396995736,45.9832,91.646,91.565,6.0]
[1643396995978,46.2332,91.646,91.562,6.0]
[1643396996174,46.2332,91.646,91.546,6.0]
[1643396996374,46.2332,91.646,91.547,45.92081264]
[1643396996575,46.2332,91.646,91.547,54.87750406]
[1643396996776,46.2332,91.646,91.548,0.25]
[1643396996986,16.387,91.64,91.548,3.20669142]
[1643396997280,0.25,91.639,91.556,6.0]
[1643396997482,0.25,91.639,91.558,6.0]
[1643396997679,0.25,91.639,91.559,6.0]
[1643396997876,0.25,91.639,91.56,0.25]
[1643396998679,4.07917419,91.629,91.56,0.25]
[1643396998882,23.1884,91.628,91.557,6.0]
[1643396999083,6.0,91.618,91.53,1.50862427]
[1643396999287,23.1884,91.617,91.503,1.50862427]
[1643396999482,23.1884,91.617,91.499,1.50862427]
[1643396999753,23.1884,91.617,91.456,28.53098362]
[1643396999754,6.0,91.607,91.483,1.50862427]
[1643396999882,13.04,91.6,91.474,1.50862427]
[1643397000082,16.398,91.58,91.484,30.35998266]
[1643397000284,47.9004,91.579,91.484,30.35998266]
[1643397000484,6.0,91.57,91.494,6.0]
[1643397000682,6.0,91.569,91.489,6.0]
[1643397000886,6.25,91.569,91.474,6.0]
[1643397001082,6.25,91.569,91.473,6.0]
[1643397001083,6.0,91.56,91.473,6.0]
[1643397001285,30.7149,91.559,91.469,6.0]
[1643397001482,16.403,91.55,91.462,39.546372]
[1643397001682,29.1533,91.549,91.462,39.546372]
[1643397001882,23.4033,91.549,91.44,16.404]
[1643397002087,6.0,91.539,91.44,16.404]
[1643397002382,25.1145,91.538,91.44,16.404]
[1643397002582,6.0,91.528,91.44,16.404]
[1643397002782,13.34114076,91.527,91.441,36.66920804]
[1643397003183,13.34114076,91.527,91.451,6.0]
[1643397004196,16.408,91.52,91.451,6.0]
[1643397004699,13.34114076,91.527,91.451,6.0]
[1643397006109,13.34114076,91.527,91.43,2.95669142]
[1643397006309,23.267,91.526,91.43,2.95669142]
[1643397006505,23.267,91.526,91.399,2.95669142]
[1643397006506,6.0,91.516,91.399,2.95669142]
[1643397006705,23.8638,91.515,91.399,2.95669142]
[1643397006907,16.412,91.5,91.397,16.10495137]
[1643397007219,4.17709094,91.499,91.403,42.6096742]
[1643397007422,4.42709094,91.499,91.403,42.6096742]
[1643397007825,4.42709094,91.499,91.431,6.0]
[1643397008228,4.42709094,91.499,91.432,0.25]
[1643397008428,16.414,91.49,91.432,0.25]
[1643397008829,0.25,91.489,91.432,0.25]
[1643397009029,16.414,91.49,91.432,0.25]
[1643397009227,4.17709094,91.499,91.432,0.25]
[1643397010231,4.17709094,91.499,91.432,13.71]
[1643397010430,4.17709094,91.499,91.433,34.79809501]
[1643397010630,16.414,91.49,91.432,0.25]
[1643397010833,0.25,91.489,91.432,0.25]
[1643397012533,0.25,91.489,91.422,0.25]
[1643397012733,23.2314,91.489,91.422,0.25]
[1643397013536,23.2314,91.489,91.416,6.0]
[1643397013736,22.9814,91.489,91.417,0.25]
[1643397013935,22.9814,91.489,91.417,11.83]
[1643397014136,54.691,91.55,91.427,6.0]
[1643397014338,52.47499135,91.564,91.44,13.04]
[1643397014537,52.47499135,91.564,91.47,0.31674269]
[1643397014738,52.47499135,91.564,91.47,11.72674269]
[1643397015141,16.03339304,91.563,91.48,6.0]
[1643397015344,16.03339304,91.563,91.481,0.25]
[1643397015543,13.04,91.61,91.481,9.20669142]
[1643397015744,13.04,91.61,91.49,16.395]
[1643397015943,6.0,91.6,91.49,40.505]
[1643397016142,6.0,91.6,91.5,6.0]
[1643397016348,71.9876,91.614,91.501,6.25]
[1643397016546,71.9876,91.614,91.522,0.30324947]
[1643397016756,71.9876,91.614,91.53,13.04]
[1643397016958,72.01856967,91.647,91.531,108.3]
[1643397017157,72.01856967,91.647,91.55,16.384]
[1643397017355,72.01856967,91.647,91.551,0.25]
[1643397017555,72.01856967,91.647,91.56,6.0]
[1643397017751,14.7646588,91.637,91.561,0.25]
[1643397017953,14.7646588,91.637,91.56,6.0]
[1643397018151,16.388,91.63,91.56,6.0]
[1643397018351,0.25,91.629,91.56,6.0]
[1643397018579,3.20669142,91.629,91.54,6.0]
[1643397018780,6.0,91.62,91.53,6.0]
[1643397018982,6.0,91.619,91.52,44.35636151]
[1643397019183,6.25,91.619,91.521,0.25]
[1643397019381,0.25,91.619,91.521,0.25]
[1643397019980,16.393,91.61,91.521,0.25]
[1643397020181,3.0035729,91.609,91.521,0.25]
[1643397020382,0.25,91.608,91.521,0.25]
[1643397020982,3.0035729,91.609,91.521,0.25]
[1643397021282,0.25,91.608,91.521,0.25]
[1643397022083,16.394,91.6,91.521,0.25]
[1643397022286,0.25,91.599,91.521,0.25]
[1643397022692,3.0035729,91.609,91.521,0.25]
[1643397022886,24.7045,91.619,91.529,0.31512201]
[1643397023085,1.5186228,91.657,91.556,0.30661803]
[1643397023284,24.7045,91.668,91.557,108.3]
[1643397023487,24.7045,91.668,91.567,6.0]
[1643397023686,24.7045,91.668,91.58,13.04]
[1643397023886,24.7045,91.668,91.59,16.376]
[1643397024089,74.39149372,91.669,91.59,16.376]
[1643397024090,74.39149372,91.669,91.59,22.376]
[1643397024285,74.39149372,91.669,91.591,3.20669142]
[1643397024484,13.69258421,91.672,91.591,3.20669142]
[1643397024685,13.69258421,91.672,91.602,48.44362319]
[1643397024885,13.69258421,91.672,91.603,0.25]
[1643397025086,13.69258421,91.672,91.612,6.0]
[1643397025286,13.69258421,91.672,91.613,0.25]
[1643397026387,0.25,91.671,91.613,0.25]
[1643397026592,0.25,91.671,91.612,6.0]
[1643397026787,0.25,91.671,91.59,6.0]
[1643397026989,0.25,91.671,91.581,0.25]
[1643397027788,16.381,91.67,91.581,0.25]
[1643397028190,22.9435,91.689,91.581,6.0]
[1643397028391,22.9435,91.689,91.582,3.20669142]
[1643397028591,22.9435,91.689,91.593,108.3]
[1643397028789,22.9435,91.689,91.594,0.25]
[1643397028989,22.9435,91.689,91.603,6.0]
[1643397029192,14.96184332,91.688,91.604,43.46295267]
[1643397029393,14.96184332,91.688,91.604,49.71295267]
[1643397029591,14.96184332,91.688,91.604,0.25]
[1643397029791,0.25,91.687,91.604,0.25]
[1643397030192,16.379,91.68,91.604,0.25]
[1643397030390,14.96184332,91.688,91.601,0.25]
[1643397030592,14.96184332,91.688,91.601,42.14312533]
[1643397031592,0.25,91.687,91.601,42.14312533]
[1643397031995,14.96184332,91.688,91.601,42.14312533]
[1643397033194,14.96184332,91.688,91.601,54.12312533]
[1643397033394,14.96184332,91.688,91.602,2.95669142]
[1643397033700,14.96184332,91.688,91.612,6.0]
[1643397033895,14.96184332,91.688,91.613,0.25]
[1643397034095,14.96184332,91.688,91.62,6.0]
[1643397034299,14.96184332,91.688,91.621,0.25]
[1643397034895,14.96184332,91.688,91.612,6.0]
[1643397035097,14.96184332,91.688,91.62,16.371]
[1643397035296,0.25,91.687,91.612,6.0]
[1643397035496,0.25,91.687,91.602,2.95669142]
[1643397035896,0.25,91.687,91.612,6.0]
[1643397036296,0.25,91.687,91.586,2.95669142]
[1643397036696,2.95669142,91.686,91.58,13.04]
[1643397036898,6.0,91.678,91.577,6.0]
[1643397037100,6.0,91.678,91.58,6.0]
[1643397037296,0.25,91.677,91.58,6.0]
[1643397037495,6.0,91.676,91.581,42.56277945]
[1643397037695,6.0,91.676,91.581,42.81277945]
[1643397037898,16.381,91.67,91.581,42.56277945]
[1643397038296,3.20669142,91.669,91.581,42.56277945]
[1643397038696,2.95669142,91.668,91.581,42.56277945]
[1643397038897,0.25,91.667,91.581,42.56277945]
[1643397039097,2.55638838,91.649,91.581,42.56277945]
[1643397039297,2.55638838,91.649,91.54,13.04]
[1643397039298,0.25,91.648,91.54,13.04]
[1643397039501,0.25,91.648,91.551,6.0]
[1643397039502,6.0,91.639,91.551,6.0]
[1643397039697,6.0,91.638,91.542,0.25]
[1643397039898,30.7444,91.638,91.55,6.0]
[1643397040199,16.388,91.63,91.542,0.25]
[1643397040399,30.7444,91.638,91.542,0.25]
[1643397040400,0.25,91.629,91.542,0.25]
[1643397040598,0.25,91.629,91.53,6.0]
[1643397040799,6.0,91.62,91.5,13.04]
[1643397040999,46.7066,91.619,91.5,13.04]
[1643397041200,16.394,91.6,91.5,29.432]
[1643397041401,13.63058005,91.598,91.5,29.432]
[1643397041599,13.63058005,91.598,91.501,39.78877906]
[1643397041800,0.25,91.597,91.502,108.3]
[1643397043006,13.63058005,91.598,91.51,16.39]
[1643397043203,45.9876,91.599,91.512,6.0]
[1643397043403,45.9876,91.599,91.513,108.3]
[1643397043603,45.9876,91.599,91.521,6.0]
[1643397043803,45.9876,91.599,91.513,108.55]
[1643397043804,45.9876,91.599,91.523,6.0]
[1643397044204,17.44286862,91.598,91.524,0.25]
[1643397044607,0.25,91.597,91.524,0.25]
[1643397045229,0.25,91.597,91.511,6.0]
[1643397045530,0.25,91.597,91.512,0.25]
[1643397046129,16.395,91.59,91.512,0.25]
[1643397046329,0.25,91.589,91.512,0.25]
[1643397047331,0.25,91.589,91.511,6.0]
[1643397047732,0.25,91.589,91.512,0.25]
[1643397047932,16.395,91.59,91.512,0.25]
[1643397048331,0.25,91.589,91.512,0.25]
[1643397049533,0.25,91.589,91.512,6.25]
[1643397050232,16.395,91.59,91.512,0.25]
[1643397050431,16.395,91.59,91.522,6.0]
[1643397050633,0.25,91.589,91.512,0.25]
[1643397051033,0.25,91.589,91.512,6.25]
[1643397051634,13.15,91.589,91.512,6.0]
[1643397051835,13.15,91.589,91.422,4.48180784]
[1643397051836,16.396,91.58,91.511,6.0]
[1643397052040,16.396,91.58,91.48,17.21497803]
[1643397052243,26.66709142,91.579,91.48,17.21497803]
[1643397052451,26.66709142,91.579,91.49,6.0]
[1643397052648,26.66709142,91.579,91.47,13.04]
[1643397052649,2.95669142,91.578,91.48,6.0]
[1643397052848,0.25,91.577,91.481,41.28031544]
[1643397053053,0.25,91.577,91.491,6.0]
[1643397053249,0.25,91.577,91.492,0.25]
[1643397053850,16.399,91.57,91.492,0.25]
[1643397054252,0.25,91.569,91.492,0.25]
[1643397054957,0.25,91.569,91.491,6.0]
[1643397055154,0.25,91.569,91.492,0.25]
[1643397055353,0.25,91.577,91.491,6.0]
[1643397055755,0.25,91.577,91.492,0.25]
[1643397055979,16.4,91.56,91.492,0.25]
[1643397056356,0.25,91.559,91.492,0.25]
[1643397056756,16.4,91.56,91.492,0.25]
[1643397056956,23.6855,91.578,91.492,0.25]
[1643397057360,23.6855,91.578,91.492,108.55]
[1643397057565,23.0429,91.599,91.502,6.0]
[1643397057759,70.7356557,91.629,91.542,0.3005513]
[1643397057964,69.2170329,91.629,91.542,12.3505513]
[1643397058166,69.2170329,91.629,91.555,0.32498149]
[1643397058358,69.2170329,91.629,91.58,0.30129982]
[1643397058561,69.2170329,91.629,91.59,29.414]
[1643397058562,22.6270329,91.629,91.59,29.414]
[1643397058761,1.5186228,91.69,91.607,0.30204912]
[1643397059060,119.2209,91.746,91.607,0.30204912]
[1643397059061,1.5186228,91.74,91.634,0.3032178]
[1643397059260,1.5186228,91.74,91.64,13.04]
[1643397059460,119.2209,91.746,91.64,13.04]
[1643397059659,38.60729178,91.745,91.651,33.78627993]
[1643397059865,38.60729178,91.745,91.652,0.25]
[1643397060071,38.60729178,91.745,91.652,3.20669142]
[1643397060266,38.60729178,91.745,91.652,0.25]
[1643397061068,16.369,91.74,91.651,0.25]
[1643397061268,0.25,91.739,91.638,0.25]
[1643397061469,0.25,91.739,91.647,6.0]
[1643397061669,0.25,91.739,91.64,6.0]
[1643397061866,6.0,91.735,91.641,0.25]
[1643397062266,0.25,91.734,91.63,6.0]
[1643397062672,16.374,91.72,91.631,0.25]
[1643397062866,16.374,91.72,91.617,6.0]
[1643397062867,0.25,91.719,91.62,6.0]
[1643397063071,0.25,91.719,91.617,6.0]
[1643397063072,6.0,91.71,91.617,6.0]
[1643397063267,1.78797282,91.709,91.618,0.25]
[1643397063787,1.78797282,91.709,91.61,6.0]
[1643397063993,6.0,91.699,91.61,6.0]
[1643397064389,0.25,91.698,91.61,6.0]
[1643397064989,6.0,91.696,91.61,6.0]
[1643397065194,35.11175176,91.695,91.611,0.25]
[1643397065390,35.11175176,91.695,91.61,6.0]
[1643397065391,16.378,91.69,91.61,6.0]
[1643397065590,6.0,91.68,91.6,6.0]
[1643397065790,6.0,91.68,91.576,108.3]
[1643397065990,23.3596,91.679,91.586,6.0]
[1643397066190,5.03351284,91.678,91.586,6.0]
[1643397066492,0.25,91.677,91.588,6.0]
[1643397066889,0.25,91.677,91.589,0.25]
[1643397067090,0.25,91.677,91.588,6.0]
[1643397067091,6.0,91.668,91.588,6.0]
[1643397067290,0.25,91.667,91.588,6.0]
[1643397067495,6.25,91.667,91.526,0.30588165]
[1643397067691,39.0739,91.667,91.55,13.04]
[1643397067892,26.35899142,91.666,91.52,13.04]
[1643397068094,6.0,91.656,91.5,13.04]
[1643397068294,24.9912,91.655,91.52,16.388]
[1643397068493,6.0,91.645,91.521,45.936043]
[1643397068694,13.04,91.64,91.521,45.936043]
[1643397068894,11.49551277,91.639,91.521,45.936043]
[1643397069093,6.0,91.629,91.531,6.0]
[1643397069293,0.25,91.628,91.531,6.0]
[1643397069494,26.37309142,91.638,91.533,108.3]
[1643397069694,23.4164,91.638,91.533,108.3]
[1643397069892,23.4164,91.638,91.545,33.0986924]
[1643397070095,23.4164,91.638,91.555,6.0]
[1643397070292,23.4164,91.638,91.556,108.55]
[1643397070499,23.4164,91.638,91.556,111.50669142]
[1643397070993,23.4164,91.638,91.566,6.0]
[1643397071295,0.25,91.637,91.567,35.09339316]
[1643397072495,0.25,91.637,91.577,6.0]
[1643397072897,0.25,91.637,91.578,0.25]
[1643397077099,11.49551277,91.639,91.578,0.25]
[1643397077300,0.25,91.638,91.579,2.95669142]
[1643397077500,6.0,91.629,91.57,6.0]
[1643397077702,6.0,91.629,91.54,13.04]
[1643397077899,0.25,91.628,91.545,0.25]
[1643397078500,47.2625,91.628,91.545,0.25]
[1643397078903,28.64975183,91.617,91.531,48.59598074]
[1643397079201,22.7501,91.616,91.531,48.59598074]
[1643397079401,23.0001,91.616,91.531,48.59598074]
[1643397079601,23.0001,91.616,91.541,6.0]
[1643397080200,23.0001,91.616,91.542,0.25]
[1643397082207,23.0001,91.616,91.531,48.59598074]
[1643397082608,23.0001,91.616,91.51,13.04]
[1643397082807,6.0,91.606,91.53,6.0]
[1643397083008,6.0,91.606,91.507,18.16695255]
[1643397083314,6.0,91.6,91.49,13.04]
[1643397083508,0.25,91.605,91.5,6.0]
[1643397083708,0.25,91.599,91.5,6.0]
[1643397083908,6.25,91.605,91.501,0.25]
[1643397084108,6.25,91.605,91.501,6.0]
[1643397084109,16.394,91.6,91.501,6.0]
[1643397084307,0.25,91.599,91.501,6.0]
[1643397084510,28.64975183,91.589,91.501,6.0]
[1643397084707,48.2282,91.588,91.501,6.0]
[1643397084911,48.4782,91.588,91.502,6.0]
[1643397085312,48.4782,91.588,91.49,67.67]
[1643397085313,48.4782,91.588,91.49,13.04]
[1643397085515,48.4782,91.588,91.475,2.95669142]
[1643397085516,6.0,91.578,91.475,2.95669142]
[1643397085710,6.0,91.578,91.467,18.16695255]
[1643397085711,16.29,91.578,91.467,18.16695255]
[1643397086013,16.29,91.578,91.4,163.02]
[1643397086014,9.20669142,91.577,91.448,2.95669142]
[1643397086209,11.49551277,91.567,91.448,2.95669142]
[1643397086410,11.49551277,91.567,91.445,44.95582237]
[1643397086411,0.25,91.566,91.449,30.46664542]
[1643397086611,16.406,91.54,91.449,30.46664542]
[1643397086815,28.89975183,91.539,91.446,30.46664542]
[1643397087010,6.0,91.529,91.456,6.0]
[1643397087212,28.64975183,91.539,91.461,34.07891303]
[1643397087611,28.64975183,91.539,91.471,6.0]
[1643397087814,28.64975183,91.539,91.472,0.25]
[1643397088010,28.64975183,91.539,91.472,6.25]
[1643397088812,28.64975183,91.539,91.472,0.25]
[1643397089613,28.64975183,91.539,91.472,6.25]
[1643397089812,28.64975183,91.539,91.473,0.25]
[1643397090214,24.4147,91.576,91.474,2.95669142]
[1643397090419,24.4147,91.576,91.48,16.396]
[1643397090618,6.0,91.566,91.49,6.0]
[1643397090820,24.4147,91.576,91.491,0.25]
[1643397091022,24.4147,91.576,91.491,6.25]
[1643397091226,34.08409706,91.575,91.491,6.25]
[1643397091421,44.69409706,91.575,91.491,6.25]
[1643397091620,16.402,91.56,91.491,6.0]
[1643397091821,16.402,91.56,91.492,0.25]
[1643397092019,6.0,91.55,91.492,0.25]
[1643397092220,6.06116754,91.549,91.492,0.25]
[1643397092921,24.4147,91.576,91.482,0.25]
[1643397093123,24.4147,91.576,91.482,108.55]
[1643397093320,0.25,91.575,91.492,2.95669142]
[1643397093521,0.25,91.575,91.5,13.04]
[1643397093726,0.25,91.575,91.502,6.0]
[1643397093924,0.25,91.575,91.51,6.0]
[1643397094324,0.25,91.576,91.511,0.25]